bitfinex/quotes_SOLUSD_20220102
["timestamp","ask_amount","ask_price","bid_price","bid_amount"]
[1641133328359,14.44984398,176.13,176.05,9.0173]
[1641133330557,14.44984398,176.13,176.05,8.5173]
[1641133330958,14.44984398,176.13,176.05,9.0173]
[1641133331461,16.06354195,176.13,176.05,9.0173]
[1641133331861,14.44984398,176.13,176.05,9.0173]
[1641133333086,3.59844898,176.13,176.05,9.0173]
[1641133333886,3.33844898,176.13,176.05,9.0173]
[1641133334287,3.33844898,176.13,176.05,9.2773]
[1641133334488,3.33844898,176.13,176.05,9.0173]
[1641133335287,11.85644898,176.13,176.05,8.5173]
[1641133335488,11.85644898,176.13,176.04,8.5184]
[1641133335890,12.11644898,176.13,176.04,9.0184]
[1641133336091,3.59844898,176.13,176.04,9.0184]
[1641133336289,4.87114898,176.13,176.04,9.0184]
[1641133336490,4.87114898,176.13,176.04,9.2784]
[1641133336689,4.87114898,176.13,176.04,9.0184]
[1641133337991,13.38914898,176.13,176.04,9.0184]
[1641133338791,13.38914898,176.13,176.04,8.5184]
[1641133338992,13.88914898,176.13,176.03,8.5189]
[1641133339393,13.88914898,176.13,176.0,1.2213]
[1641133339593,15.50284695,176.13,176.0,1.7213]
[1641133340193,15.50284695,176.13,176.01,8.5196]
[1641133340393,8.52,176.09,176.01,9.0196]
[1641133340593,8.78,176.09,176.01,9.0196]
[1641133340994,0.26,176.09,176.01,9.0196]
[1641133341393,30.15754406,176.1,176.01,9.0196]
[1641133341594,30.15754406,176.1,176.01,9.2796]
[1641133342595,31.41214406,176.1,176.01,9.2796]
[1641133342895,40.43154406,176.1,176.01,9.2796]
[1641133343396,40.43154406,176.1,176.01,9.0196]
[1641133354145,9.774,176.1,176.01,9.0196]
[1641133354344,1.2546,176.1,176.01,9.2796]
[1641133355348,1.2546,176.1,176.02,1.2453]
[1641133355748,10.0339,176.1,176.03,8.519]
[1641133355950,10.0339,176.1,176.03,9.019]
[1641133356349,10.0339,176.1,176.02,1.2453]
[1641133356551,10.0339,176.1,176.02,1.7453]
[1641133357349,10.0339,176.1,176.02,10.2646]
[1641133361763,1.5146,176.1,176.02,15.7936]
[1641133361958,0.26,176.1,176.02,16.0536]
[1641133362367,1.5838,176.12,176.02,16.0536]
[1641133364364,1.5838,176.12,176.02,10.5246]
[1641133364962,1.5838,176.12,176.02,10.2646]
[1641133365362,10.1022,176.12,176.02,10.2646]
[1641133366164,11.71589797,176.12,176.02,10.2646]
[1641133366362,12.21589797,176.12,176.02,10.2646]
[1641133366965,10.6022,176.12,176.02,10.2646]
[1641133368666,10.6022,176.12,176.02,9.7646]
[1641133369167,10.1022,176.12,176.02,9.7646]
[1641133369366,10.6022,176.12,176.02,9.7646]
[1641133371794,12.21589797,176.12,176.02,9.7646]
[1641133372897,12.21589797,176.12,176.02,1.2453]
[1641133376301,12.21589797,176.12,176.0,8.5206]
[1641133376498,12.21589797,176.12,176.01,0.5]
[1641133376902,1.61369797,176.1,176.01,0.5]
[1641133377099,8.5207,176.07,176.0,9.0206]
[1641133377303,31.55310154,176.07,176.0,9.0206]
[1641133377504,32.05310154,176.07,176.0,9.0206]
[1641133377700,23.03240154,176.07,176.0,9.0206]
[1641133378801,23.29240154,176.07,176.0,9.0206]
[1641133380206,31.81320154,176.07,176.0,9.0206]
[1641133381905,31.81320154,176.07,176.0,0.5]
[1641133382105,31.81320154,176.07,175.99,10.3181]
[1641133394316,8.5208,176.07,175.99,9.0209]
[1641133394516,38.19629797,176.12,175.99,9.2809]
[1641133394718,1.2572,176.11,175.99,9.2809]
[1641133395317,1.2572,176.11,176.0,1.3357]
[1641133395516,9.776,176.11,176.04,8.519]
[1641133396015,10.036,176.11,176.04,9.019]
[1641133404253,10.036,176.11,176.04,0.5]
[1641133404452,10.036,176.11,176.03,9.0199]
[1641133404952,8.7788,176.11,176.03,9.0199]
[1641133405253,0.26,176.11,176.03,9.0199]
[1641133405652,13.47044695,176.13,176.03,9.0199]
[1641133405653,13.73044695,176.13,176.03,9.0199]
[1641133406053,12.11674898,176.13,176.04,1.2914]
[1641133406256,12.11674898,176.13,176.06,8.5183]
[1641133406455,12.11674898,176.13,176.06,9.0183]
[1641133406653,12.11674898,176.13,176.04,1.2914]
[1641133407956,12.61674898,176.13,176.04,1.2914]
[1641133408156,12.61674898,176.13,176.04,1.7914]
[1641133408557,13.91254898,176.13,176.04,1.7914]
[1641133409357,13.91254898,176.13,176.04,10.311]
[1641133409558,13.91254898,176.13,176.04,9.0196]
[1641133410159,22.09254898,176.13,176.04,9.0196]
[1641133410561,22.09254898,176.13,176.04,8.5196]
[1641133411659,22.09254898,176.13,176.03,8.52]
[1641133412860,22.09254898,176.13,176.03,9.02]
[1641133414662,24.42594398,176.13,176.03,9.02]
[1641133415965,24.42594398,176.13,176.03,8.52]
[1641133416966,24.42594398,176.13,176.02,9.7926]
[1641133417167,26.03964195,176.13,176.02,9.7926]
[1641133417367,25.77964195,176.13,176.02,9.7926]
[1641133417866,1.61369797,176.12,176.02,9.7926]
[1641133418266,26.25487904,176.07,176.02,9.7926]
[1641133418467,26.75487904,176.07,175.97,29.6846]
[1641133418767,28.25677904,176.07,175.94,29.6328]
[1641133418970,36.43677904,176.07,175.94,1.2271]
[1641133419566,44.95767904,176.07,175.95,8.5233]
[1641133419968,44.95767904,176.07,175.95,9.0233]
[1641133420171,46.57137701,176.07,175.95,9.0233]
[1641133420870,46.57137701,176.07,175.95,0.5]
[1641133421072,46.57137701,176.07,175.94,1.2271]
[1641133422673,46.57137701,176.07,175.94,1.7271]
[1641133423772,46.57137701,176.07,175.94,1.2271]
[1641133424172,46.57137701,176.07,175.93,8.5238]
[1641133424375,46.57137701,176.07,175.94,1.2479]
[1641133424973,46.57137701,176.07,175.94,9.7716]
[1641133425877,46.57137701,176.07,175.94,1.2479]
[1641133427474,1.61369797,176.06,175.94,1.2479]
[1641133427677,8.5245,176.0,175.94,1.2479]
[1641133427874,29.40907592,175.99,175.91,74.4041]
[1641133428174,29.66907592,175.99,175.91,75.7219]
[1641133428375,29.66907592,175.99,175.91,76.2219]
[1641133428775,8.5262,175.97,175.91,76.2219]
[1641133429174,8.7862,175.97,175.91,76.2219]
[1641133429600,11.119595,175.97,175.91,75.7219]
[1641133431382,11.119595,175.97,175.9,2.799731]
[1641133431583,19.799595,175.97,175.9,2.799731]
[1641133431780,19.799595,175.97,175.9,0.49350987]
[1641133432584,8.5277,175.94,175.9,0.49350987]
[1641133432983,1.2617,175.96,175.9,0.49350987]
[1641133433987,1.5217,175.96,175.9,0.49350987]
[1641133434189,8.5275,175.94,175.9,0.49350987]
[1641133434590,8.7875,175.94,175.9,0.49350987]
[1641133445018,9.7886,175.96,175.9,0.49350987]
[1641133445219,8.5269,175.96,175.9,0.49350987]
[1641133446420,8.7869,175.96,175.9,0.49350987]
[1641133457428,10.0732,175.96,175.9,0.49350987]
[1641133461135,10.5732,175.96,175.9,0.49350987]
[1641133474168,11.99989368,175.96,175.9,0.49350987]
[1641133475272,13.61359165,175.96,175.9,0.49350987]
[1641133475868,11.99989368,175.96,175.9,0.49350987]
[1641133476770,13.61359165,175.96,175.9,0.49350987]
[1641133479178,11.92689797,175.96,175.9,0.49350987]
[1641133480584,12.18689797,175.96,175.9,0.49350987]
[1641133481985,10.5732,175.96,175.9,0.49350987]
[1641133486594,10.3132,175.96,175.9,0.49350987]
[1641133488098,10.5732,175.96,175.9,0.49350987]
[1641133489617,11.99989368,175.96,175.9,0.49350987]
[1641133490022,13.61359165,175.96,175.9,0.49350987]
[1641133491030,11.99989368,175.96,175.9,0.49350987]
[1641133491225,20.17989368,175.96,175.9,0.49350987]
[1641133492630,21.79359165,175.96,175.9,0.49350987]
[1641133493232,19.67989368,175.96,175.9,0.49350987]
[1641133494034,21.29359165,175.96,175.9,0.49350987]
[1641133494433,21.79359165,175.96,175.9,0.49350987]
[1641133495231,20.17989368,175.96,175.9,0.49350987]
[1641133495931,21.79359165,175.96,175.9,0.49350987]
[1641133496331,20.17989368,175.96,175.9,0.49350987]
[1641133496630,19.91989368,175.96,175.9,0.49350987]
[1641133497235,21.53359165,175.96,175.9,0.49350987]
[1641133498040,21.79359165,175.96,175.9,0.49350987]
[1641133499742,21.29359165,175.96,175.9,0.49350987]
[1641133500976,21.53359165,175.96,175.9,0.49350987]
[1641133502469,21.79359165,175.96,175.9,0.49350987]
[1641133503171,1.61369797,175.95,175.9,0.49350987]
[1641133503373,8.5287,175.93,175.9,0.49350987]
[1641133503571,25.16420012,175.91,175.9,0.49350987]
[1641133503971,25.42420012,175.91,175.9,0.49350987]
[1641133505272,33.95290012,175.91,175.9,0.49350987]
[1641133506776,33.69290012,175.91,175.9,0.49350987]
[1641133506975,6.06033606,175.92,175.9,0.49350987]
[1641133507174,1.61369797,175.95,175.9,0.49350987]
[1641133507374,2.11369797,175.95,175.9,0.49350987]
[1641133507976,22.56351145,175.94,175.9,0.49350987]
[1641133508575,22.82351145,175.94,175.9,0.49350987]
[1641133510378,3.04039165,175.96,175.9,9.01980987]
[1641133510579,1.61369797,175.96,175.9,9.01980987]
[1641133510778,1.61369797,175.96,175.9,9.51980987]
[1641133510988,2.333395,175.97,175.9,9.51980987]
[1641133511379,27.49179163,175.97,175.9,9.51980987]
[1641133511579,25.15839663,175.97,175.9,9.51980987]
[1641133511780,25.15839663,175.97,175.9,9.77980987]
[1641133512178,1.61369797,176.01,175.9,9.77980987]
[1641133512878,1.61369797,176.02,175.9,9.77980987]
[1641133513080,1.87369797,176.02,175.91,1.2457]
[1641133513281,29.13919957,176.01,175.95,8.5233]
[1641133513781,29.13919957,176.01,175.95,9.0233]
[1641133514181,29.13919957,176.01,175.95,8.5233]
[1641133515582,29.39919957,176.01,175.95,8.5233]
[1641133516382,29.39919957,176.01,175.95,9.0233]
[1641133518487,0.26,176.01,175.95,9.0233]
[1641133518987,10.39719797,176.03,175.95,9.0233]
[1641133519388,39.09296128,176.03,175.95,9.0233]
[1641133519792,39.09296128,176.03,175.95,8.5233]
[1641133520791,39.09296128,176.03,175.95,9.0233]
[1641133520993,39.09296128,176.03,175.95,8.5233]
[1641133521595,39.09296128,176.03,175.94,1.2718]
[1641133521792,41.01965496,176.03,175.94,1.2718]
[1641133521994,1.61369797,176.02,175.94,1.2718]
[1641133522195,8.18,176.01,175.94,1.2718]
[1641133522396,0.5,176.01,175.94,1.2718]
[1641133522595,0.76,176.01,175.94,1.2718]
[1641133522795,0.26,176.01,175.94,1.2718]
[1641133522995,1.87369797,176.02,175.94,1.2718]
[1641133523195,8.5245,176.0,175.94,1.2718]
[1641133523596,8.7845,176.0,175.94,1.2718]
[1641133528198,8.5245,176.0,175.94,1.2718]
[1641133528800,11.39689797,176.02,175.94,9.7956]
[1641133529002,10.13749797,176.02,175.94,9.7956]
[1641133529700,10.39749797,176.02,175.94,9.7956]
[1641133531809,10.89749797,176.02,175.94,9.7956]
[1641133532404,10.39749797,176.02,175.94,9.7956]
[1641133532803,18.57749797,176.02,175.94,9.7956]
[1641133533005,18.57749797,176.02,175.94,10.2956]
[1641133533406,10.39749797,176.02,175.94,9.7956]
[1641133533609,18.57749797,176.02,175.94,9.7956]
[1641133533807,18.57749797,176.02,175.94,10.2956]
[1641133534209,10.39749797,176.02,175.94,10.2956]
[1641133535127,10.39749797,176.02,175.94,9.7956]
[1641133535430,10.89749797,176.02,175.94,9.7956]
[1641133535636,10.39749797,176.02,175.94,9.7956]
[1641133535930,10.39749797,176.02,175.94,10.2956]
[1641133536130,1.61369797,176.02,175.94,10.2956]
[1641133537532,1.87369797,176.02,175.94,10.2956]
[1641133537937,0.26,176.02,175.94,10.2956]
[1641133538334,10.39649797,176.04,175.94,10.2956]
[1641133538533,8.7828,176.04,175.94,10.2956]
[1641133538934,0.26,176.04,175.94,10.2956]
[1641133539341,2.64160712,176.05,175.94,10.2956]
[1641133539738,1.61369797,176.04,175.94,10.2956]
[1641133540136,1.87369797,176.04,175.94,10.2956]
[1641133540337,10.55369797,176.04,175.94,10.2956]
[1641133540736,8.94,176.04,175.94,10.2956]
[1641133540938,10.259,176.04,175.94,10.2956]
[1641133541138,10.259,176.04,175.94,9.7956]
[1641133541541,1.61369797,176.02,175.94,9.7956]
[1641133541739,10.13739797,176.02,175.94,9.7956]
[1641133542040,10.39739797,176.02,175.94,10.2956]
[1641133542845,10.39739797,176.02,175.94,9.7956]
[1641133543347,10.39739797,176.02,175.94,10.2956]
[1641133544245,10.39739797,176.02,175.94,9.7956]
[1641133544847,10.39739797,176.02,175.94,10.2956]
[1641133550357,9.2837,176.02,175.94,10.2956]
[1641133550555,9.2837,176.02,175.94,9.7956]
[1641133550755,10.89739797,176.02,175.94,9.7956]
[1641133551854,10.39739797,176.02,175.94,9.7956]
[1641133552564,8.7837,176.02,175.94,9.7956]
[1641133552956,10.39739797,176.02,175.94,9.7956]
[1641133554385,10.39739797,176.02,175.94,10.2956]
[1641133555384,8.18,176.01,175.94,10.2956]
[1641133555583,16.964,176.01,175.94,10.2956]
[1641133556687,18.57769797,176.01,175.94,10.2956]
[1641133557792,16.964,176.01,175.94,10.2956]
[1641133557987,8.784,176.01,175.94,10.2956]
[1641133559592,10.39769797,176.01,175.94,10.2956]
[1641133560095,1.61369797,176.01,175.94,10.2956]
[1641133561093,1.61369797,176.03,175.94,10.2956]
[1641133561293,10.13639797,176.03,175.94,10.2956]
[1641133561492,10.39639797,176.03,175.94,10.2956]
[1641133566798,1.87369797,176.03,175.94,10.2956]
[1641133567400,0.26,176.03,175.94,10.2956]
[1641133567600,11.71489797,176.04,175.94,10.2956]
[1641133571503,12.21489797,176.04,175.94,10.2956]
[1641133571702,11.71489797,176.04,175.94,10.2956]
[1641133571904,10.1012,176.04,175.94,10.2956]
[1641133572402,10.6012,176.04,175.94,10.2956]
[1641133574006,10.1012,176.04,175.94,10.2956]
[1641133579514,10.6012,176.04,175.94,10.2956]
[1641133580537,12.21489797,176.04,175.94,10.2956]
[1641133580739,11.71489797,176.04,175.94,10.2956]
[1641133581538,12.21489797,176.04,175.94,10.2956]
[1641133581738,19.89489797,176.04,175.94,10.2956]
[1641133581939,20.39489797,176.04,175.94,10.2956]
[1641133582439,21.82159165,176.04,175.94,10.2956]
[1641133582840,21.82159165,176.04,175.94,1.7718]
[1641133583138,30.61774288,175.99,175.9,0.49350987]
[1641133583341,8.5255,175.97,175.9,0.49350987]
[1641133583540,8.7855,175.97,175.9,0.49350987]
[1641133584237,8.7855,175.97,175.91,8.5255]
[1641133589143,8.7855,175.97,175.9,0.49350987]
[1641133589541,9.2855,175.97,175.9,0.49350987]
[1641133590141,8.18,175.96,175.9,0.49350987]
[1641133590344,9.2855,175.97,175.9,0.49350987]
[1641133590541,8.68,175.96,175.9,0.49350987]
[1641133590746,8.528,175.93,175.9,0.49350987]
[1641133590941,32.33399171,175.92,175.9,0.49350987]
[1641133591344,33.09399171,175.92,175.9,0.49350987]
[1641133592244,30.5286,175.91,175.9,0.49350987]
[1641133592546,9.2886,175.91,175.9,0.49350987]
[1641133592743,8.7886,175.91,175.9,0.49350987]
[1641133593343,9.2886,175.91,175.9,0.49350987]
[1641133593544,8.7886,175.91,175.9,0.49350987]
[1641133594145,9.2886,175.91,175.9,0.49350987]
[1641133594548,31.49,175.9,175.84,72.9151]
[1641133594746,8.5301,175.88,175.81,1.2978]
[1641133594947,9.0301,175.88,175.81,1.7978]
[1641133595148,9.2901,175.88,175.81,1.7978]
[1641133596148,8.7901,175.88,175.81,1.7978]
[1641133596350,16.9701,175.88,175.81,1.7978]
[1641133596549,17.4701,175.88,175.81,1.7978]
[1641133597149,9.2901,175.88,175.81,0.5]
[1641133597350,17.4701,175.88,175.81,0.5]
[1641133597649,17.4701,175.88,175.79,79.4021]
[1641133598650,9.2901,175.88,175.79,79.4021]
[1641133599252,17.4701,175.88,175.79,79.4021]
[1641133599452,9.2901,175.88,175.79,79.4021]
[1641133600254,17.4701,175.88,175.79,79.4021]
[1641133603561,17.4701,175.88,175.79,78.9021]
[1641133604160,18.89679368,175.88,175.77,41.0]
[1641133604967,1.255,175.87,175.77,41.0]
[1641133605163,8.5336,175.82,175.77,41.0]
[1641133605564,8.7936,175.82,175.77,41.0]
[1641133605889,9.2936,175.82,175.77,41.0]
[1641133606265,8.7936,175.82,175.77,41.0]
[1641133606868,9.2936,175.82,175.77,41.0]
[1641133607069,8.7936,175.82,175.77,41.0]
[1641133608369,8.5336,175.82,175.77,41.0]
[1641133608571,38.75262447,175.84,175.77,41.0]
[1641133609870,39.01262447,175.84,175.77,41.0]
[1641133611279,39.01262447,175.84,175.77,42.2398]
[1641133615006,39.01262447,175.84,175.77,41.0]
[1641133618612,38.75262447,175.84,175.77,41.0]
[1641133619018,38.75262447,175.84,175.77,41.5]
[1641133619416,38.75262447,175.84,175.77,41.0]
[1641133620114,39.01262447,175.84,175.77,41.0]
[1641133623319,8.18,175.83,175.77,41.0]
[1641133623519,8.5347,175.8,175.77,41.0]
[1641133623720,6.06033606,175.79,175.77,41.0]
[1641133624119,6.32033606,175.79,175.77,41.0]
[1641133625219,14.85523606,175.79,175.77,41.0]
[1641133627923,14.85523606,175.79,175.65,28.4496]
[1641133627924,25.21296868,175.77,175.65,28.4496]
[1641133628123,25.21296868,175.77,175.68,9.8634]
[1641133628322,27.25076868,175.77,175.68,1.3277]
[1641133629221,8.5363,175.76,175.68,1.3277]
[1641133629426,1.7778,175.77,175.68,1.3277]
[1641133629622,0.5,175.77,175.68,1.3277]
[1641133629824,2.11369797,175.81,175.68,1.8277]
[1641133630222,35.19356749,175.8,175.68,1.8277]
[1641133630624,35.69356749,175.8,175.68,1.8277]
[1641133631023,1.2637,175.79,175.68,1.8277]
[1641133631222,17.9786,175.79,175.68,10.3634]
[1641133631423,18.2386,175.79,175.68,10.3634]
[1641133632223,18.7386,175.79,175.68,9.8634]
[1641133632428,18.7386,175.79,175.68,10.3634]
[1641133632823,17.4749,175.79,175.68,10.3634]
[1641133635224,18.6807,175.79,175.68,10.3634]
[1641133636026,18.1807,175.79,175.68,10.3634]
[1641133636427,17.9207,175.79,175.68,10.3634]
[1641133636828,18.4207,175.79,175.68,10.3634]
[1641133637027,16.7149,175.79,175.68,10.3634]
[1641133638528,16.9749,175.79,175.68,10.3634]
[1641133639330,8.18,175.78,175.68,10.3634]
[1641133639654,0.26,175.78,175.68,10.3634]
[1641133640237,16.9749,175.79,175.68,10.3634]
[1641133640630,10.22159368,175.79,175.68,10.3634]
[1641133641334,8.7949,175.79,175.68,10.3634]
[1641133641835,9.2949,175.79,175.68,10.3634]
[1641133642033,8.7949,175.79,175.68,10.3634]
[1641133646638,16.9749,175.79,175.68,10.3634]
[1641133647662,19.308295,175.79,175.68,10.3634]
[1641133648166,8.18,175.78,175.68,10.3634]
[1641133648363,11.128295,175.79,175.68,10.3634]
[1641133651567,8.18,175.78,175.68,10.3634]
[1641133651967,16.9754,175.78,175.68,10.3634]
[1641133652567,8.7954,175.78,175.68,10.3634]
[1641133653968,0.26,175.78,175.68,10.3634]
[1641133654167,11.127995,175.79,175.68,10.3634]
[1641133655471,11.627995,175.79,175.68,10.3634]
[1641133655977,8.5358,175.77,175.68,10.3634]
[1641133656177,2.593395,175.79,175.68,10.3634]
[1641133656377,0.26,175.78,175.68,10.3634]
[1641133656578,2.593395,175.79,175.68,10.3634]
[1641133657178,8.5351,175.78,175.68,10.3634]
[1641133657579,8.7951,175.78,175.68,10.3634]
[1641133659381,11.128495,175.78,175.68,10.3634]
[1641133662485,8.18,175.77,175.68,10.3634]
[1641133662686,8.18,175.76,175.68,10.3634]
[1641133662886,8.5361,175.76,175.68,10.3634]
[1641133663086,0.26,175.76,175.68,10.3634]
[1641133663491,2.593395,175.78,175.68,10.3634]
[1641133663688,2.593395,175.78,175.68,15.9264]
[1641133664586,11.128295,175.78,175.68,15.9264]
[1641133664789,11.128295,175.78,175.68,10.3634]
[1641133666590,2.333395,175.78,175.68,10.3634]
[1641133666790,2.333395,175.78,175.69,8.18]
[1641133666989,2.333395,175.78,175.73,8.5325]
[1641133667390,2.333395,175.78,175.73,9.0325]
[1641133669491,32.93696617,175.83,175.73,9.0325]
[1641133669694,32.93696617,175.83,175.74,1.2511]
[1641133669893,32.93696617,175.83,175.76,8.5324]
[1641133670092,33.19696617,175.83,175.76,8.5324]
[1641133671393,33.19696617,175.83,175.75,8.5329]
[1641133671592,33.69696617,175.83,175.75,8.5329]
[1641133671895,1.68669368,175.83,175.75,9.0329]
[1641133672091,0.26,175.83,175.75,9.0329]
[1641133672495,1.552,175.84,175.75,9.0329]
[1641133673097,10.0841,175.84,175.75,9.0329]
[1641133673298,11.69779797,175.84,175.75,9.0329]
[1641133673499,11.69779797,175.84,175.76,9.8208]
[1641133673899,11.51079368,175.84,175.76,9.8208]
[1641133674198,11.51079368,175.84,175.76,1.2887]
[1641133674401,11.51079368,175.84,175.73,78.6321]
[1641133674402,12.01079368,175.84,175.73,78.6321]
[1641133674598,12.01079368,175.84,175.73,1.7771]
[1641133675000,1.61369797,175.83,175.73,1.2771]
[1641133675400,1.42669368,175.82,175.73,1.2771]
[1641133675601,1.68669368,175.82,175.73,1.2771]
[1641133675801,2.18669368,175.82,175.73,1.2771]
[1641133676601,3.80039165,175.82,175.73,1.2771]
[1641133677202,8.5344,175.79,175.73,1.2771]
[1641133677601,8.7944,175.79,175.73,1.2771]
[1641133677902,24.90369691,175.78,175.72,8.5344]
[1641133678103,25.16369691,175.78,175.72,8.5344]
[1641133679610,27.49709191,175.78,175.72,8.5344]
[1641133682935,36.03219191,175.78,175.71,1.2669]
[1641133683134,37.45888559,175.78,175.71,0.5]
[1641133683435,46.13888559,175.78,175.66,75.637]
[1641133683636,1.3097,175.77,175.67,1.3255]
[1641133683837,1.3097,175.77,175.67,1.8255]
[1641133684037,1.5697,175.77,175.67,1.8255]
[1641133685237,8.5359,175.76,175.69,8.5358]
[1641133685637,8.7959,175.76,175.69,8.5358]
[1641133687539,8.7959,175.76,175.68,8.5363]
[1641133687739,8.5359,175.76,175.68,8.5363]
[1641133687939,8.5359,175.76,175.68,9.0363]
[1641133689039,0.26,175.76,175.68,9.0363]
[1641133689541,10.1051,175.77,175.68,9.0363]
[1641133690342,10.1051,175.77,175.69,9.766]
[1641133690748,10.1051,175.77,175.69,10.266]
[1641133692646,10.1051,175.77,175.69,9.766]
[1641133693249,10.1051,175.77,175.69,10.266]
[1641133693649,10.1051,175.77,175.69,9.766]
[1641133693848,10.1051,175.77,175.69,10.266]
[1641133695356,10.6051,175.77,175.69,10.266]
[1641133698664,10.6051,175.77,175.69,9.766]
[1641133699465,10.6051,175.77,175.69,10.266]
[1641133701793,10.6051,175.77,175.69,9.766]
[1641133701992,10.6051,175.77,175.69,10.266]
[1641133702991,10.6051,175.77,175.69,1.2302]
[1641133703192,10.1051,175.77,175.69,1.7302]
[1641133704495,10.6051,175.77,175.69,1.7302]
[1641133704993,10.6051,175.77,175.69,1.2302]
[1641133705394,10.6051,175.77,175.69,1.7302]
[1641133705794,10.6051,175.77,175.69,1.2302]
[1641133706393,10.6051,175.77,175.69,1.7302]
[1641133706592,10.6051,175.77,175.69,1.2302]
[1641133706794,10.6051,175.77,175.69,1.7302]
[1641133706995,10.6051,175.77,175.69,1.2302]
[1641133707195,10.6051,175.77,175.69,1.7302]
[1641133707594,10.6051,175.77,175.69,1.2302]
[1641133708196,10.6051,175.77,175.69,10.2661]
[1641133708797,10.6051,175.77,175.69,9.7661]
[1641133708996,10.6051,175.77,175.69,10.2661]
[1641133709403,10.1051,175.77,175.69,10.2661]
[1641133710927,10.6051,175.77,175.69,10.2661]
[1641133711130,10.6051,175.77,175.69,9.7661]
[1641133711531,10.6051,175.77,175.69,10.2661]
[1641133713830,10.1051,175.77,175.69,10.2661]
[1641133714232,10.1051,175.77,175.69,1.2302]
[1641133714431,10.6051,175.77,175.69,1.7302]
[1641133716637,12.03179368,175.77,175.69,1.7302]
[1641133716833,12.03179368,175.77,175.69,1.2302]
[1641133717434,12.03179368,175.77,175.69,1.7302]
[1641133717838,12.03179368,175.77,175.69,1.2302]
[1641133718639,12.03179368,175.77,175.67,8.5368]
[1641133718842,8.18,175.76,175.65,75.626]
[1641133719039,8.5391,175.71,175.63,1.2699]
[1641133719440,8.7991,175.71,175.63,1.7699]
[1641133719841,8.7991,175.71,175.63,1.2699]
[1641133720242,8.7991,175.71,175.63,9.8088]
[1641133720444,8.7991,175.71,175.63,10.3088]
[1641133720640,8.7991,175.71,175.63,9.8088]
[1641133721043,0.26,175.71,175.63,10.3088]
[1641133721443,8.7978,175.72,175.63,10.3088]
[1641133725845,0.26,175.72,175.63,10.3088]
[1641133726046,8.5372,175.73,175.63,10.3088]
[1641133726646,8.7972,175.73,175.63,10.3088]
[1641133726845,9.2972,175.73,175.63,10.3088]
[1641133727046,8.7972,175.73,175.63,10.3088]
[1641133728251,8.7972,175.73,175.63,9.8088]
[1641133728547,8.7972,175.73,175.63,10.3088]
[1641133728846,9.2972,175.73,175.63,10.3088]
[1641133729047,9.2972,175.73,175.63,9.8088]
[1641133729250,9.2972,175.73,175.63,10.3088]
[1641133732351,9.2972,175.73,175.63,9.8088]
[1641133734356,9.2972,175.73,175.63,10.3088]
[1641133734957,9.2972,175.73,175.63,9.8088]
[1641133735161,9.2972,175.73,175.63,1.2699]
[1641133735457,9.2972,175.73,175.58,81.7492]
[1641133735458,8.5402,175.67,175.58,81.7492]
[1641133735661,8.5402,175.67,175.6,0.5]
[1641133735860,8.8002,175.67,175.6,0.5]
[1641133736160,0.26,175.67,175.6,0.5]
[1641133736360,0.26,175.67,175.61,8.5402]
[1641133736560,8.5403,175.69,175.61,8.5402]
[1641133736760,8.5403,175.69,175.61,9.0402]
[1641133736962,8.8003,175.69,175.61,9.0402]
[1641133740287,9.3003,175.69,175.61,9.0402]
[1641133740986,8.5396,175.71,175.61,9.0402]
[1641133741291,9.4586,175.72,175.61,9.0402]
[1641133741489,0.5,175.71,175.61,9.0402]
[1641133741689,0.5,175.71,175.62,1.326]
[1641133741888,9.9586,175.72,175.65,8.5381]
[1641133742287,9.9586,175.72,175.65,14.7781]
[1641133742989,9.9586,175.72,175.65,15.2781]
[1641133743792,10.2186,175.72,175.65,14.7781]
[1641133748705,10.2186,175.72,175.65,15.2781]